Workbook

Sheet Navigation
K7: Sarla Beej Bhandar - Mahrendergarh
L8: Stock and Sales FOR THE PERIOD 01-Apr-2021 TO 30-Apr-2021

Sheet Dealer Report
A1: SARLA BEEJ BHANDAR
A2: Cinema Road, Mahendergarh
A3: SEED LIC. NO-1165,PESTICIDE Lic No.264
A4: Fertiliser Lic No-1715(R)
A5: BAYER
A6: Stock Summary
A7: 1-Apr-2021 to 30-Apr-2021
B8: BAYER
B9: SARLA BEEJ BHANDAR
A10: Particulars | B10: 1-Apr-2021 to 30-Apr-2021
B11: Opening Balance | C11: Inwards | D11: Outwards | E11: Closing Balance
B12: Quantity | C12: Quantity | D12: Quantity | E12: Quantity
A13: ADMIRE(T)WG70-30GM
A14: ADMIRE WG70-2 GM | C14: 1000 | D14: 695 | E14: 305
A15: ANTRACOL(T)WP70-1 KG | B15: 20 | E15: 20
A16: ANTRACOL(T)WP70-250 GM | B16: 80 | E16: 80
A17: ANTRACOL(T)WP70-500 Gm | B17: 60 | D17: 20 | E17: 40
A18: BELT EXPERT-100 ML
A19: BUONOS-500ML | B19: 20 | E19: 20
A20: BUONOS SC-250 ML | B20: 40 | E20: 40
A21: CONFIDORE-100ML
A22: CONFIDORE 1LTR
A23: CONFIDORE 250ML
A24: CONFIDORE 500 ML.
A25: CONFIDORE -50 ML
A26: DECIS-100 ML | B26: 50 | E26: 50
A27: DECIS-1 LTR | B27: 10 | D27: 10
A28: DECIS EC28 250 ML | B28: 40 | E28: 40
A29: DECIS EC28 500ML | B29: 20 | E29: 20
A30: Fame-10 ML
A31: FOLECUSE 100 ML
A32: FOLECUSE 250ML
A33: FOOST-24 X 500 GM
A34: GAUCHO-50 ML
A35: GAUCHO-5 Ltr
A36: INFINITO SC6875 100ML
A37: INFINITO SC6875 500ML | C37: 20 | E37: 20
A38: LAUDIS SC630-57.5 ML
A39: MELODY DUO WP66.8 100GM
A40: MELODY DUO WP66.8 400 GM
A41: MOVENTO ENERGY-250 ML | B41: 10 | E41: 10
A42: MUSTARD-5222-1 KG
A43: MUSTARD PA 5210-1 KG
A44: MUSTARD PA 5232- 1 KG
A45: NATIVO WG75-100GM | B45: 50 | D45: 24 | E45: 26
A46: OBERON-250 ML
A47: OBERON SC-100 ML
A48: OBERON(T)-200 ML
A49: PLANOFIX SL4.5 100 ML | B49: 110 | E49: 110
A50: PROAGRO 9001-1.5 Kg
A51: PROAGRO 9180-1.5 Kg
A52: PROAGRO 9444-1.5 Kg
A53: PROAGRO 9444 GOLD-1.5 Kg
A54: PROAGRO 9450-1.5 Kg
A55: REGENT GR-1KG | B55: 20 | E55: 20
A56: REGENT GR-5KG | B56: 16 | D56: 8 | E56: 8
A57: REGENT SC 100 ML | B57: 100 | E57: 100
A58: REGENT SC 250 ML | B58: 720 | E58: 720
A59: REGENT SC 500ML | B59: 400 | E59: 400
A60: REGENT ULTRA-5 KG
A61: SOLOMON 100 ML
A62: SOLOMON 250 ML
A63: SOLOMON-500 ML
A64: SURPASS 7172 BG II | B64: 240 | C64: 400 | D64: 470 | E64: 170
A65: Grand Total | B65: =SUM(B13:B64) -> 2006 | C65: 1420 | D65: 1227 | E65: 2199

Sheet Dealer Report working
A1: Particulars | B1: Opening Qty | C1: Purchase Qty | D1: Sales Qty | E1: CLSG | F1: Master Name | K1: Values
A2: ADMIRE(T)WG70-30GM | F2: ADMIRE (T) WG70 150X30GR BOT IN | J2: Row Labels | K2: Sum of Opening Qty | L2: Sum of Purchase Qty | M2: Sum of Sales Qty | N2: Sum of CLSG
A3: ADMIRE WG70-2 GM | C3: 1000 | D3: 695 | E3: 305 | F3: ADMIRE WG70 125X(8X2GR) BAG IN | J3: ADMIRE (T) WG70 150X30GR BOT IN
A4: ANTRACOL(T)WP70-1 KG | B4: 20 | E4: 20 | F4: ANTRACOL (T) WP70 10X1KG BAG IN | J4: ADMIRE WG70 125X(8X2GR) BAG IN | L4: 1000 | M4: 695 | N4: 305
A5: ANTRACOL(T)WP70-250 GM | B5: 80 | E5: 80 | F5: ANTRACOL (T) WP70 40X250GR BAG IN | J5: ANTRACOL (T) WP70 10X1KG BAG IN | K5: 20 | N5: 20
A6: ANTRACOL(T)WP70-500 Gm | B6: 60 | D6: 20 | E6: 40 | F6: ANTRACOL (T) WP70 20X500GR BAG IN | J6: ANTRACOL (T) WP70 20X500GR BAG IN | K6: 60 | M6: 20 | N6: 40
A7: BELT EXPERT-100 ML | F7: BELT EXPERT SC480 50X100ML BOT IN | J7: ANTRACOL (T) WP70 40X250GR BAG IN | K7: 80 | N7: 80
A8: BUONOS-500ML | B8: 20 | E8: 20 | F8: BUONOS SC430 20X500ML BOT IN | J8: BELT EXPERT SC480 50X100ML BOT IN
A9: BUONOS SC-250 ML | B9: 40 | E9: 40 | F9: BUONOS SC430 40X250ML BOT IN | J9: BUONOS SC430 20X500ML BOT IN | K9: 20 | N9: 20
A10: CONFIDORE-100ML | F10: CONFIDOR (T) SL200 50X100ML BOT IN | J10: BUONOS SC430 40X250ML BOT IN | K10: 40 | N10: 40
A11: CONFIDORE 1LTR | F11: CONFIDOR (T) SL200 10X1L BOT IN | J11: CONFIDOR (T) SL200 100X50ML BOT IN
A12: CONFIDORE 250ML | F12: CONFIDOR (T) SL200 20X250ML BOT IN | J12: CONFIDOR (T) SL200 10X1L BOT IN
A13: CONFIDORE 500 ML. | F13: CONFIDOR (T) SL200 20X500ML BOT IN | J13: CONFIDOR (T) SL200 20X250ML BOT IN
A14: CONFIDORE -50 ML | F14: CONFIDOR (T) SL200 100X50ML BOT IN | J14: CONFIDOR (T) SL200 20X500ML BOT IN
A15: DECIS-100 ML | B15: 50 | E15: 50 | F15: DECIS EC 28 50X100ML BOT IN | J15: CONFIDOR (T) SL200 50X100ML BOT IN
A16: DECIS-1 LTR | B16: 10 | D16: 10 | F16: DECIS EC 28 10X1L BOT IN | J16: DECIS EC 28 10X1L BOT IN | K16: 10 | M16: 10
A17: DECIS EC28 250 ML | B17: 40 | E17: 40 | F17: DECIS EC 28 40X250ML BOT IN | J17: DECIS EC 28 20X500ML BOT IN | K17: 20 | N17: 20
A18: DECIS EC28 500ML | B18: 20 | E18: 20 | F18: DECIS EC 28 20X500ML BOT IN | J18: DECIS EC 28 40X250ML BOT IN | K18: 40 | N18: 40
A19: Fame-10 ML | F19: FAME (T) SC480 10X(20X10ML) BOT IN | J19: DECIS EC 28 50X100ML BOT IN | K19: 50 | N19: 50
A20: FOLECUSE 100 ML | F20: FOLICUR (T) EC250 50X100ML BOT IN | J20: FAME (T) SC480 10X(20X10ML) BOT IN
A21: FOLECUSE 250ML | F21: FOLICUR (T) EC250 40X250ML BOT IN | J21: FOLICUR (T) EC250 40X250ML BOT IN
A22: FOOST-24 X 500 GM | F22: FOOST WP50 24X500G BAG IN | J22: FOLICUR (T) EC250 50X100ML BOT IN
A23: GAUCHO-50 ML | F23: GAUCHO FS600 100X50ML BOT IN | J23: FOOST WP50 24X500G BAG IN
A24: GAUCHO-5 Ltr | F24: GAUCHO FS600 2X5L BOT IN | J24: GAUCHO FS600 100X50ML BOT IN
A25: INFINITO SC6875 100ML | F25: INFINITO SC687 5 50X100ML BOT IN | J25: GAUCHO FS600 2X5L BOT IN
A26: INFINITO SC6875 500ML | C26: 20 | E26: 20 | F26: INFINITO SC687 5 20X500ML BOT IN | J26: INFINITO SC687 5 20X500ML BOT IN | L26: 20 | N26: 20
A27: LAUDIS SC630-57.5 ML | F27: LAUDIS SC630 10X57.5ML BOT IN | J27: INFINITO SC687 5 50X100ML BOT IN
A28: MELODY DUO WP66.8 100GM | F28: MELODY DUO WP66 8 50X100GR BAG IN | J28: LAUDIS SC630 10X57.5ML BOT IN
A29: MELODY DUO WP66.8 400 GM | F29: MELODY DUO WP66 8 10X400GR BAG IN | J29: MELODY DUO WP66 8 10X400GR BAG IN
A30: MOVENTO ENERGY-250 ML | B30: 10 | E30: 10 | F30: MOVENTO ENERGY SC240 40X250ML BOT IN | J30: MELODY DUO WP66 8 50X100GR BAG IN
A31: MUSTARD-5222-1 KG | F31: MUSTARD 5222 30X1KG BAG IN | J31: MILLET HYBRID 9001 20X1.5 BAG IN
A32: MUSTARD PA 5210-1 KG | F32: MUSTARD PA 5210 (LOC) 30X1KG BAG IN | J32: MILLET HYBRID 9444 20X1.5KG BAG IN
A33: MUSTARD PA 5232- 1 KG | F33: MUSTARD PA 5232 (LOC) 30X1KG BAG IN | J33: MILLET HYBRID 9444 GOLD 20X1.50KG BAG IN
A34: NATIVO WG75-100GM | B34: 50 | D34: 24 | E34: 26 | F34: NATIVO WG75 50X100GR BAG IN | J34: MILLET HYBRID 9450 20X1 5KG BAG IN
A35: OBERON-250 ML | F35: OBERON (T) SC240 40X200ML BOT IN | J35: MILLET PA 9180 (LOC) 20X1.50KG BAG IN
A36: OBERON SC-100 ML | F36: OBERON (T) SC240 50X100ML BOT IN | J36: MOVENTO ENERGY SC240 40X250ML BOT IN | K36: 10 | N36: 10
A37: OBERON(T)-200 ML | F37: OBERON (T) SC240 40X200ML BOT IN | J37: MUSTARD 5222 30X1KG BAG IN
A38: PLANOFIX SL4.5 100 ML | B38: 110 | E38: 110 | F38: PLANOFIX SL4 5 50X100ML BOT IN | J38: MUSTARD PA 5210 (LOC) 30X1KG BAG IN
A39: PROAGRO 9001-1.5 Kg | F39: MILLET HYBRID 9001 20X1.5 BAG IN | J39: MUSTARD PA 5232 (LOC) 30X1KG BAG IN
A40: PROAGRO 9180-1.5 Kg | F40: MILLET PA 9180 (LOC) 20X1.50KG BAG IN | J40: NATIVO WG75 50X100GR BAG IN | K40: 50 | M40: 24 | N40: 26
A41: PROAGRO 9444-1.5 Kg | F41: MILLET HYBRID 9444 20X1.5KG BAG IN | J41: OBERON (T) SC240 40X200ML BOT IN
A42: PROAGRO 9444 GOLD-1.5 Kg | F42: MILLET HYBRID 9444 GOLD 20X1.50KG BAG IN | J42: OBERON (T) SC240 50X100ML BOT IN
A43: PROAGRO 9450-1.5 Kg | F43: MILLET HYBRID 9450 20X1 5KG BAG IN | J43: PLANOFIX SL4 5 50X100ML BOT IN | K43: 110 | N43: 110
A44: REGENT GR-1KG | B44: 20 | E44: 20 | F44: REGENT GR0 3 20X1KG BAG IN | J44: REGENT (T) SC50 20X250ML BOT IN | K44: 720 | N44: 720
A45: REGENT GR-5KG | B45: 16 | D45: 8 | E45: 8 | F45: REGENT GR0 3 4X5KG BAG IN | J45: REGENT (T) SC50 20X500ML BOT IN | K45: 400 | N45: 400
A46: REGENT SC 100 ML | B46: 100 | E46: 100 | F46: REGENT (T) SC50 50X100ML BOT IN | J46: REGENT (T) SC50 50X100ML BOT IN | K46: 100 | N46: 100
A47: REGENT SC 250 ML | B47: 720 | E47: 720 | F47: REGENT (T) SC50 20X250ML BOT IN | J47: REGENT GR0 3 20X1KG BAG IN | K47: 20 | N47: 20
A48: REGENT SC 500ML | B48: 400 | E48: 400 | F48: REGENT (T) SC50 20X500ML BOT IN | J48: REGENT GR0 3 4X5KG BAG IN | K48: 16 | M48: 8 | N48: 8
A49: REGENT ULTRA-5 KG | F49: REGENT GR0 3 4X5KG BAG IN | J49: SOLOMON OD300 20X500ML BOT IN
A50: SOLOMON 100 ML | F50: SOLOMON OD300 50X100ML BOT IN | J50: SOLOMON OD300 40X250ML BOT IN
A51: SOLOMON 250 ML | F51: SOLOMON OD300 40X250ML BOT IN | J51: SOLOMON OD300 50X100ML BOT IN
A52: SOLOMON-500 ML | F52: SOLOMON OD300 20X500ML BOT IN | J52: SURPASS 7172 BG2 20X450GR BAG IN | K52: 240 | L52: 400 | M52: 470 | N52: 170
A53: SURPASS 7172 BG II | B53: 240 | C53: 400 | D53: 470 | E53: 170 | F53: SURPASS 7172 BG2 20X450GR BAG IN | J53: Grand Total | K53: 2006 | L53: 1420 | M53: 1227 | N53: 2199

Sheet Master
A1: Item Details | B1: Master Name
A2: ADMIRE(T)WG70-30GM | B2: ADMIRE (T) WG70 150X30GR BOT IN
A3: ADMIRE WG70-2 GM | B3: ADMIRE WG70 125X(8X2GR) BAG IN
A4: ANTRACOL(T)WP70-1 KG | B4: ANTRACOL (T) WP70 10X1KG BAG IN
A5: ANTRACOL(T)WP70-250 GM | B5: ANTRACOL (T) WP70 40X250GR BAG IN
A6: ANTRACOL(T)WP70-500 Gm | B6: ANTRACOL (T) WP70 20X500GR BAG IN
A7: BELT EXPERT-100 ML | B7: BELT EXPERT SC480 50X100ML BOT IN
A8: BUONOS-500ML | B8: BUONOS SC430 20X500ML BOT IN
A9: BUONOS SC-250 ML | B9: BUONOS SC430 40X250ML BOT IN
A10: CONFIDORE-100ML | B10: CONFIDOR (T) SL200 50X100ML BOT IN
A11: CONFIDORE 1LTR | B11: CONFIDOR (T) SL200 10X1L BOT IN
A12: CONFIDORE 250ML | B12: CONFIDOR (T) SL200 20X250ML BOT IN
A13: CONFIDORE 500 ML. | B13: CONFIDOR (T) SL200 20X500ML BOT IN
A14: CONFIDORE -50 ML | B14: CONFIDOR (T) SL200 100X50ML BOT IN
A15: DECIS-100 ML | B15: DECIS EC 28 50X100ML BOT IN
A16: DECIS-1 LTR | B16: DECIS EC 28 10X1L BOT IN
A17: DECIS EC28 250 ML | B17: DECIS EC 28 40X250ML BOT IN
A18: DECIS EC28 500ML | B18: DECIS EC 28 20X500ML BOT IN
A19: Fame-10 ML | B19: FAME (T) SC480 10X(20X10ML) BOT IN
A20: FOLECUSE 100 ML | B20: FOLICUR (T) EC250 50X100ML BOT IN
A21: FOLECUSE 250ML | B21: FOLICUR (T) EC250 40X250ML BOT IN
A22: FOOST-24 X 500 GM | B22: FOOST WP50 24X500G BAG IN
A23: GAUCHO-50 ML | B23: GAUCHO FS600 100X50ML BOT IN
A24: GAUCHO-5 Ltr | B24: GAUCHO FS600 2X5L BOT IN
A25: INFINITO SC6875 100ML | B25: INFINITO SC687 5 50X100ML BOT IN
A26: INFINITO SC6875 500ML | B26: INFINITO SC687 5 20X500ML BOT IN
A27: LAUDIS SC630-57.5 ML | B27: LAUDIS SC630 10X57.5ML BOT IN
A28: MELODY DUO WP66.8 100GM | B28: MELODY DUO WP66 8 50X100GR BAG IN
A29: MELODY DUO WP66.8 400 GM | B29: MELODY DUO WP66 8 10X400GR BAG IN
A30: MOVENTO ENERGY-250 ML | B30: MOVENTO ENERGY SC240 40X250ML BOT IN
A31: MUSTARD-5222-1 KG | B31: MUSTARD 5222 30X1KG BAG IN
A32: MUSTARD PA 5210-1 KG | B32: MUSTARD PA 5210 (LOC) 30X1KG BAG IN
A33: MUSTARD PA 5232- 1 KG | B33: MUSTARD PA 5232 (LOC) 30X1KG BAG IN
A34: NATIVO WG75-100GM | B34: NATIVO WG75 50X100GR BAG IN
A35: OBERON-250 ML | B35: OBERON (T) SC240 40X200ML BOT IN
A36: OBERON SC-100 ML | B36: OBERON (T) SC240 50X100ML BOT IN
A37: OBERON(T)-200 ML | B37: OBERON (T) SC240 40X200ML BOT IN
A38: PLANOFIX SL4.5 100 ML | B38: PLANOFIX SL4 5 50X100ML BOT IN
A39: PROAGRO 9001-1.5 Kg | B39: MILLET HYBRID 9001 20X1.5 BAG IN
A40: PROAGRO 9180-1.5 Kg | B40: MILLET PA 9180 (LOC) 20X1.50KG BAG IN
A41: PROAGRO 9444-1.5 Kg | B41: MILLET HYBRID 9444 20X1.5KG BAG IN
A42: PROAGRO 9444 GOLD-1.5 Kg | B42: MILLET HYBRID 9444 GOLD 20X1.50KG BAG IN
A43: PROAGRO 9450-1.5 Kg | B43: MILLET HYBRID 9450 20X1 5KG BAG IN
A44: REGENT GR-1KG | B44: REGENT GR0 3 20X1KG BAG IN
A45: REGENT GR-5KG | B45: REGENT GR0 3 4X5KG BAG IN
A46: REGENT SC 100 ML | B46: REGENT (T) SC50 50X100ML BOT IN
A47: REGENT SC 250 ML | B47: REGENT (T) SC50 20X250ML BOT IN
A48: REGENT SC 500ML | B48: REGENT (T) SC50 20X500ML BOT IN
A49: REGENT ULTRA-5 KG | B49: REGENT GR0 3 4X5KG BAG IN
A50: SOLOMON 100 ML | B50: SOLOMON OD300 50X100ML BOT IN
A51: SOLOMON 250 ML | B51: SOLOMON OD300 40X250ML BOT IN
A52: SOLOMON-500 ML | B52: SOLOMON OD300 20X500ML BOT IN
A53: SURPASS 7172 BG II | B53: SURPASS 7172 BG2 20X450GR BAG IN

Sheet Final Dealer Work
B2: PRODUCT | C2: ITEMALIAS | D2: Bpc | E2: Volume | F2: Opening Qty | G2: Purchase Qty | H2: Purchase Return Qty | I2: Sales Qty | J2: Sales Return Qty | K2: Transfer Qty | L2: Consignment Qty | M2: Adjustment Qty | N2: CLSG
B3: ADMIRE (T) WG70 150X30GR BOT IN | F3: 0 | G3: 0 | H3: 0 | I3: 0 | J3: 0 | K3: 0 | L3: 0 | M3: 0 | N3: 0
B4: ADMIRE WG70 125X(8X2GR) BAG IN | F4: 0 | G4: 1000 | H4: 0 | I4: 695 | J4: 0 | K4: 0 | L4: 0 | M4: 0 | N4: 305
B5: ANTRACOL (T) WP70 10X1KG BAG IN | F5: 20 | G5: 0 | H5: 0 | I5: 0 | J5: 0 | K5: 0 | L5: 0 | M5: 0 | N5: 20
B6: ANTRACOL (T) WP70 20X500GR BAG IN | F6: 60 | G6: 0 | H6: 0 | I6: 20 | J6: 0 | K6: 0 | L6: 0 | M6: 0 | N6: 40
B7: ANTRACOL (T) WP70 40X250GR BAG IN | F7: 80 | G7: 0 | H7: 0 | I7: 0 | J7: 0 | K7: 0 | L7: 0 | M7: 0 | N7: 80
B8: BELT EXPERT SC480 50X100ML BOT IN | F8: 0 | G8: 0 | H8: 0 | I8: 0 | J8: 0 | K8: 0 | L8: 0 | M8: 0 | N8: 0
B9: BUONOS SC430 20X500ML BOT IN | F9: 20 | G9: 0 | H9: 0 | I9: 0 | J9: 0 | K9: 0 | L9: 0 | M9: 0 | N9: 20
B10: BUONOS SC430 40X250ML BOT IN | F10: 40 | G10: 0 | H10: 0 | I10: 0 | J10: 0 | K10: 0 | L10: 0 | M10: 0 | N10: 40
B11: CONFIDOR (T) SL200 100X50ML BOT IN | F11: 0 | G11: 0 | H11: 0 | I11: 0 | J11: 0 | K11: 0 | L11: 0 | M11: 0 | N11: 0
B12: CONFIDOR (T) SL200 10X1L BOT IN | F12: 0 | G12: 0 | H12: 0 | I12: 0 | J12: 0 | K12: 0 | L12: 0 | M12: 0 | N12: 0
B13: CONFIDOR (T) SL200 20X250ML BOT IN | F13: 0 | G13: 0 | H13: 0 | I13: 0 | J13: 0 | K13: 0 | L13: 0 | M13: 0 | N13: 0
B14: CONFIDOR (T) SL200 20X500ML BOT IN | F14: 0 | G14: 0 | H14: 0 | I14: 0 | J14: 0 | K14: 0 | L14: 0 | M14: 0 | N14: 0
B15: CONFIDOR (T) SL200 50X100ML BOT IN | F15: 0 | G15: 0 | H15: 0 | I15: 0 | J15: 0 | K15: 0 | L15: 0 | M15: 0 | N15: 0
B16: DECIS EC 28 10X1L BOT IN | F16: 10 | G16: 0 | H16: 0 | I16: 10 | J16: 0 | K16: 0 | L16: 0 | M16: 0 | N16: 0
B17: DECIS EC 28 20X500ML BOT IN | F17: 20 | G17: 0 | H17: 0 | I17: 0 | J17: 0 | K17: 0 | L17: 0 | M17: 0 | N17: 20
B18: DECIS EC 28 40X250ML BOT IN | F18: 40 | G18: 0 | H18: 0 | I18: 0 | J18: 0 | K18: 0 | L18: 0 | M18: 0 | N18: 40
B19: DECIS EC 28 50X100ML BOT IN | F19: 50 | G19: 0 | H19: 0 | I19: 0 | J19: 0 | K19: 0 | L19: 0 | M19: 0 | N19: 50
B20: FAME (T) SC480 10X(20X10ML) BOT IN | F20: 0 | G20: 0 | H20: 0 | I20: 0 | J20: 0 | K20: 0 | L20: 0 | M20: 0 | N20: 0
B21: FOLICUR (T) EC250 40X250ML BOT IN | F21: 0 | G21: 0 | H21: 0 | I21: 0 | J21: 0 | K21: 0 | L21: 0 | M21: 0 | N21: 0
B22: FOLICUR (T) EC250 50X100ML BOT IN | F22: 0 | G22: 0 | H22: 0 | I22: 0 | J22: 0 | K22: 0 | L22: 0 | M22: 0 | N22: 0
B23: FOOST WP50 24X500G BAG IN | F23: 0 | G23: 0 | H23: 0 | I23: 0 | J23: 0 | K23: 0 | L23: 0 | M23: 0 | N23: 0
B24: GAUCHO FS600 100X50ML BOT IN | F24: 0 | G24: 0 | H24: 0 | I24: 0 | J24: 0 | K24: 0 | L24: 0 | M24: 0 | N24: 0
B25: GAUCHO FS600 2X5L BOT IN | F25: 0 | G25: 0 | H25: 0 | I25: 0 | J25: 0 | K25: 0 | L25: 0 | M25: 0 | N25: 0
B26: INFINITO SC687 5 20X500ML BOT IN | F26: 0 | G26: 20 | H26: 0 | I26: 0 | J26: 0 | K26: 0 | L26: 0 | M26: 0 | N26: 20
B27: INFINITO SC687 5 50X100ML BOT IN | F27: 0 | G27: 0 | H27: 0 | I27: 0 | J27: 0 | K27: 0 | L27: 0 | M27: 0 | N27: 0
B28: LAUDIS SC630 10X57.5ML BOT IN | F28: 0 | G28: 0 | H28: 0 | I28: 0 | J28: 0 | K28: 0 | L28: 0 | M28: 0 | N28: 0
B29: MELODY DUO WP66 8 10X400GR BAG IN | F29: 0 | G29: 0 | H29: 0 | I29: 0 | J29: 0 | K29: 0 | L29: 0 | M29: 0 | N29: 0
B30: MELODY DUO WP66 8 50X100GR BAG IN | F30: 0 | G30: 0 | H30: 0 | I30: 0 | J30: 0 | K30: 0 | L30: 0 | M30: 0 | N30: 0
B31: MILLET HYBRID 9001 20X1.5 BAG IN | F31: 0 | G31: 0 | H31: 0 | I31: 0 | J31: 0 | K31: 0 | L31: 0 | M31: 0 | N31: 0
B32: MILLET HYBRID 9444 20X1.5KG BAG IN | F32: 0 | G32: 0 | H32: 0 | I32: 0 | J32: 0 | K32: 0 | L32: 0 | M32: 0 | N32: 0
B33: MILLET HYBRID 9444 GOLD 20X1.50KG BAG IN | F33: 0 | G33: 0 | H33: 0 | I33: 0 | J33: 0 | K33: 0 | L33: 0 | M33: 0 | N33: 0
B34: MILLET HYBRID 9450 20X1 5KG BAG IN | F34: 0 | G34: 0 | H34: 0 | I34: 0 | J34: 0 | K34: 0 | L34: 0 | M34: 0 | N34: 0
B35: MILLET PA 9180 (LOC) 20X1.50KG BAG IN | F35: 0 | G35: 0 | H35: 0 | I35: 0 | J35: 0 | K35: 0 | L35: 0 | M35: 0 | N35: 0
B36: MOVENTO ENERGY SC240 40X250ML BOT IN | F36: 10 | G36: 0 | H36: 0 | I36: 0 | J36: 0 | K36: 0 | L36: 0 | M36: 0 | N36: 10
B37: MUSTARD 5222 30X1KG BAG IN | F37: 0 | G37: 0 | H37: 0 | I37: 0 | J37: 0 | K37: 0 | L37: 0 | M37: 0 | N37: 0
B38: MUSTARD PA 5210 (LOC) 30X1KG BAG IN | F38: 0 | G38: 0 | H38: 0 | I38: 0 | J38: 0 | K38: 0 | L38: 0 | M38: 0 | N38: 0
B39: MUSTARD PA 5232 (LOC) 30X1KG BAG IN | F39: 0 | G39: 0 | H39: 0 | I39: 0 | J39: 0 | K39: 0 | L39: 0 | M39: 0 | N39: 0
B40: NATIVO WG75 50X100GR BAG IN | F40: 50 | G40: 0 | H40: 0 | I40: 24 | J40: 0 | K40: 0 | L40: 0 | M40: 0 | N40: 26
B41: OBERON (T) SC240 40X200ML BOT IN | F41: 0 | G41: 0 | H41: 0 | I41: 0 | J41: 0 | K41: 0 | L41: 0 | M41: 0 | N41: 0
B42: OBERON (T) SC240 50X100ML BOT IN | F42: 0 | G42: 0 | H42: 0 | I42: 0 | J42: 0 | K42: 0 | L42: 0 | M42: 0 | N42: 0
B43: PLANOFIX SL4 5 50X100ML BOT IN | F43: 110 | G43: 0 | H43: 0 | I43: 0 | J43: 0 | K43: 0 | L43: 0 | M43: 0 | N43: 110
B44: REGENT (T) SC50 20X250ML BOT IN | F44: 720 | G44: 0 | H44: 0 | I44: 0 | J44: 0 | K44: 0 | L44: 0 | M44: 0 | N44: 720
B45: REGENT (T) SC50 20X500ML BOT IN | F45: 400 | G45: 0 | H45: 0 | I45: 0 | J45: 0 | K45: 0 | L45: 0 | M45: 0 | N45: 400
B46: REGENT (T) SC50 50X100ML BOT IN | F46: 100 | G46: 0 | H46: 0 | I46: 0 | J46: 0 | K46: 0 | L46: 0 | M46: 0 | N46: 100
B47: REGENT GR0 3 20X1KG BAG IN | F47: 20 | G47: 0 | H47: 0 | I47: 0 | J47: 0 | K47: 0 | L47: 0 | M47: 0 | N47: 20
B48: REGENT GR0 3 4X5KG BAG IN | F48: 16 | G48: 0 | H48: 0 | I48: 8 | J48: 0 | K48: 0 | L48: 0 | M48: 0 | N48: 8
B49: SOLOMON OD300 20X500ML BOT IN | F49: 0 | G49: 0 | H49: 0 | I49: 0 | J49: 0 | K49: 0 | L49: 0 | M49: 0 | N49: 0
B50: SOLOMON OD300 40X250ML BOT IN | F50: 0 | G50: 0 | H50: 0 | I50: 0 | J50: 0 | K50: 0 | L50: 0 | M50: 0 | N50: 0
B51: SOLOMON OD300 50X100ML BOT IN | F51: 0 | G51: 0 | H51: 0 | I51: 0 | J51: 0 | K51: 0 | L51: 0 | M51: 0 | N51: 0
B52: SURPASS 7172 BG2 20X450GR BAG IN | F52: 240 | G52: 400 | H52: 0 | I52: 470 | J52: 0 | K52: 0 | L52: 0 | M52: 0 | N52: 170
B53: Grand Total | F53: 2006 | G53: 1420 | H53: 0 | I53: 1227 | J53: 0 | K53: 0 | L53: 0 | M53: 0 | N53: 2199

Sheet Zylem SNS Report
A2: Company Name:-BAYER
A3: Stock and Sales FOR THE PERIOD 01-Apr-2021 TO 30-Apr-2021
A4: Generated on 6/5/2021 7:19:38 AM
A5: DISTRIBUTOR PRODUCTWISE
A6: OUTPUT IN : PIC,DETAILS AS : Column,CONSIDER : Voucher Date,INCLUDE VALIDATION : False
A7: DISTRIBUTOR:Sarla Beej Bhandar - Mahrendergarh,
A8: DISTRIBUTOR | B8: SAPCODE | C8: PRODUCT | D8: ITEMALIAS | E8: Opening Qty | F8: Purchase Qty | G8: Purchase Return Qty | H8: Sales Qty | I8: Sales Return Qty | J8: Transfer Qty | K8: Consignment Qty | L8: Adjustment Qty | M8: CLSG
A9: Sarla Beej Bhandar - Mahrendergarh | B9: 9061991 | C9: ADMIRE (T) WG70 150X30GR BOT IN | D9: 79234988 | E9: 0 | F9: 0 | G9: 0 | H9: 0 | I9: 0 | J9: 0 | K9: 0 | L9: 0 | M9: 0
A10: Sarla Beej Bhandar - Mahrendergarh | B10: 9061991 | C10: ADMIRE WG70 125X(8X2GR) BAG IN | D10: 6101665 | E10: 0 | F10: 1000 | G10: 0 | H10: 695 | I10: 0 | J10: 0 | K10: 0 | L10: 0 | M10: 305
A11: Sarla Beej Bhandar - Mahrendergarh | B11: 9061991 | C11: ANTRACOL (T) WP70 10X1KG BAG IN | D11: 6077322 | E11: 20 | F11: 0 | G11: 0 | H11: 0 | I11: 0 | J11: 0 | K11: 0 | L11: 0 | M11: 20
A12: Sarla Beej Bhandar - Mahrendergarh | B12: 9061991 | C12: ANTRACOL (T) WP70 20X500GR BAG IN | D12: 5999978 | E12: 60 | F12: 0 | G12: 0 | H12: 20 | I12: 0 | J12: 0 | K12: 0 | L12: 0 | M12: 40
A13: Sarla Beej Bhandar - Mahrendergarh | B13: 9061991 | C13: ANTRACOL (T) WP70 40X250GR BAG IN | D13: 6112179 | E13: 80 | F13: 0 | G13: 0 | H13: 0 | I13: 0 | J13: 0 | K13: 0 | L13: 0 | M13: 80
A14: Sarla Beej Bhandar - Mahrendergarh | B14: 9061991 | C14: ANTRACOL (T) WP70 50X100GR BAG IN | D14: 6113191 | E14: 0 | F14: 0 | G14: 0 | H14: 0 | I14: 0 | J14: 0 | K14: 0 | L14: 0 | M14: 0
A15: Sarla Beej Bhandar - Mahrendergarh | B15: 9061991 | C15: BELT EXPERT SC480 50X100ML BOT IN | D15: 79722869 | E15: 0 | F15: 0 | G15: 0 | H15: 0 | I15: 0 | J15: 0 | K15: 0 | L15: 0 | M15: 0
A16: Sarla Beej Bhandar - Mahrendergarh | B16: 9061991 | C16: CONFIDOR (T) SL200 100X50ML BOT IN | D16: 5708361 | E16: 0 | F16: 0 | G16: 0 | H16: 0 | I16: 0 | J16: 0 | K16: 0 | L16: 0 | M16: 0
A17: Sarla Beej Bhandar - Mahrendergarh | B17: 9061991 | C17: CONFIDOR (T) SL200 20X250ML BOT IN | D17: 5699494 | E17: 0 | F17: 0 | G17: 0 | H17: 0 | I17: 0 | J17: 0 | K17: 0 | L17: 0 | M17: 0
A18: Sarla Beej Bhandar - Mahrendergarh | B18: 9061991 | C18: CONFIDOR (T) SL200 20X500ML BOT IN | D18: 5704439 | E18: 0 | F18: 0 | G18: 0 | H18: 0 | I18: 0 | J18: 0 | K18: 0 | L18: 0 | M18: 0
A19: Sarla Beej Bhandar - Mahrendergarh | B19: 9061991 | C19: CONFIDOR (T) SL200 50X100ML BOT IN | D19: 5703475 | E19: 0 | F19: 0 | G19: 0 | H19: 0 | I19: 0 | J19: 0 | K19: 0 | L19: 0 | M19: 0
A20: Sarla Beej Bhandar - Mahrendergarh | B20: 9061991 | C20: DECIS EC 28 10X1L BOT IN | D20: 3823303 | E20: 10 | F20: 0 | G20: 0 | H20: 10 | I20: 0 | J20: 0 | K20: 0 | L20: 0 | M20: 0
A21: Sarla Beej Bhandar - Mahrendergarh | B21: 9061991 | C21: DECIS EC 28 20X500ML BOT IN | D21: 3823370 | E21: 20 | F21: 0 | G21: 0 | H21: 0 | I21: 0 | J21: 0 | K21: 0 | L21: 0 | M21: 20
A22: Sarla Beej Bhandar - Mahrendergarh | B22: 9061991 | C22: DECIS EC 28 40X250ML BOT IN | D22: 3823346 | E22: 40 | F22: 0 | G22: 0 | H22: 0 | I22: 0 | J22: 0 | K22: 0 | L22: 0 | M22: 40
A23: Sarla Beej Bhandar - Mahrendergarh | B23: 9061991 | C23: FAME (T) SC480 10X(20X10ML) BOT IN | D23: 79305885 | E23: 0 | F23: 0 | G23: 0 | H23: 0 | I23: 0 | J23: 0 | K23: 0 | L23: 0 | M23: 0
A24: Sarla Beej Bhandar - Mahrendergarh | B24: 9061991 | C24: FOLICUR (T) EC250 40X250ML BOT IN | D24: 79682271 | E24: 0 | F24: 0 | G24: 0 | H24: 0 | I24: 0 | J24: 0 | K24: 0 | L24: 0 | M24: 0
A25: Sarla Beej Bhandar - Mahrendergarh | B25: 9061991 | C25: FOLICUR (T) EC250 50X100ML BOT IN | D25: 79629125 | E25: 0 | F25: 0 | G25: 0 | H25: 0 | I25: 0 | J25: 0 | K25: 0 | L25: 0 | M25: 0
A26: Sarla Beej Bhandar - Mahrendergarh | B26: 9061991 | C26: FOOST WP50 24X500G BAG IN | D26: 85811770 | E26: 0 | F26: 0 | G26: 0 | H26: 0 | I26: 0 | J26: 0 | K26: 0 | L26: 0 | M26: 0
A27: Sarla Beej Bhandar - Mahrendergarh | B27: 9061991 | C27: GAUCHO FS600 100X50ML BOT IN | D27: 80034733 | E27: 0 | F27: 0 | G27: 0 | H27: 0 | I27: 0 | J27: 0 | K27: 0 | L27: 0 | M27: 0
A28: Sarla Beej Bhandar - Mahrendergarh | B28: 9061991 | C28: GAUCHO FS600 2X5L BOT IN | D28: 3823915 | E28: 0 | F28: 0 | G28: 0 | H28: 0 | I28: 0 | J28: 0 | K28: 0 | L28: 0 | M28: 0
A29: Sarla Beej Bhandar - Mahrendergarh | B29: 9061991 | C29: INFINITO SC687 5 20X500ML BOT IN | D29: 79641176 | E29: 0 | F29: 20 | G29: 0 | H29: 0 | I29: 0 | J29: 0 | K29: 0 | L29: 0 | M29: 20
A30: Sarla Beej Bhandar - Mahrendergarh | B30: 9061991 | C30: INFINITO SC687 5 50X100ML BOT IN | D30: 79632487 | E30: 0 | F30: 0 | G30: 0 | H30: 0 | I30: 0 | J30: 0 | K30: 0 | L30: 0 | M30: 0
A31: Sarla Beej Bhandar - Mahrendergarh | B31: 9061991 | C31: LAUDIS SC630 10X57.5ML BOT IN | D31: 84470481 | E31: 0 | F31: 0 | G31: 0 | H31: 0 | I31: 0 | J31: 0 | K31: 0 | L31: 0 | M31: 0
A32: Sarla Beej Bhandar - Mahrendergarh | B32: 9061991 | C32: MELODY DUO WP66 8 10X400GR BAG IN | D32: 80994974 | E32: 0 | F32: 0 | G32: 0 | H32: 0 | I32: 0 | J32: 0 | K32: 0 | L32: 0 | M32: 0
A33: Sarla Beej Bhandar - Mahrendergarh | B33: 9061991 | C33: MILLET HYBRID 9001 20X1.5 BAG IN | D33: 84986003 | E33: 0 | F33: 0 | G33: 0 | H33: 0 | I33: 0 | J33: 0 | K33: 0 | L33: 0 | M33: 0
A34: Sarla Beej Bhandar - Mahrendergarh | B34: 9061991 | C34: MILLET HYBRID 9444 20X1.5KG BAG IN | D34: 56000147 | E34: 0 | F34: 0 | G34: 0 | H34: 0 | I34: 0 | J34: 0 | K34: 0 | L34: 0 | M34: 0
A35: Sarla Beej Bhandar - Mahrendergarh | B35: 9061991 | C35: MILLET HYBRID 9444 GOLD 20X1.50KG BAG IN | D35: 80872666 | E35: 0 | F35: 0 | G35: 0 | H35: 0 | I35: 0 | J35: 0 | K35: 0 | L35: 0 | M35: 0
A36: Sarla Beej Bhandar - Mahrendergarh | B36: 9061991 | C36: MILLET HYBRID 9450 20X1 5KG BAG IN | D36: 80228716 | E36: 0 | F36: 0 | G36: 0 | H36: 0 | I36: 0 | J36: 0 | K36: 0 | L36: 0 | M36: 0
A37: Sarla Beej Bhandar - Mahrendergarh | B37: 9061991 | C37: MOVENTO ENERGY SC240 40X250ML BOT IN | D37: 79679505 | E37: 10 | F37: 0 | G37: 0 | H37: 0 | I37: 0 | J37: 0 | K37: 0 | L37: 0 | M37: 10
A38: Sarla Beej Bhandar - Mahrendergarh | B38: 9061991 | C38: MUSTARD 5222 30X1KG BAG IN | D38: 81740844 | E38: 0 | F38: 0 | G38: 0 | H38: 0 | I38: 0 | J38: 0 | K38: 0 | L38: 0 | M38: 0
A39: Sarla Beej Bhandar - Mahrendergarh | B39: 9061991 | C39: NATIVO WG75 50X100GR BAG IN | D39: 79304102 | E39: 50 | F39: 0 | G39: 0 | H39: 24 | I39: 0 | J39: 0 | K39: 0 | L39: 0 | M39: 26
A40: Sarla Beej Bhandar - Mahrendergarh | B40: 9061991 | C40: OBERON (T) SC240 40X200ML BOT IN | D40: 79971362 | E40: 0 | F40: 0 | G40: 0 | H40: 0 | I40: 0 | J40: 0 | K40: 0 | L40: 0 | M40: 0
A41: Sarla Beej Bhandar - Mahrendergarh | B41: 9061991 | C41: OBERON (T) SC240 50X100ML BOT IN | D41: 79998538 | E41: 0 | F41: 0 | G41: 0 | H41: 0 | I41: 0 | J41: 0 | K41: 0 | L41: 0 | M41: 0
A42: Sarla Beej Bhandar - Mahrendergarh | B42: 9061991 | C42: PLANOFIX SL4 5 50X100ML BOT IN | D42: 3825098 | E42: 110 | F42: 0 | G42: 0 | H42: 0 | I42: 0 | J42: 0 | K42: 0 | L42: 0 | M42: 110
A43: Sarla Beej Bhandar - Mahrendergarh | B43: 9061991 | C43: REGENT (T) SC50 20X250ML BOT IN | D43: 5976951 | E43: 720 | F43: 0 | G43: 0 | H43: 0 | I43: 0 | J43: 0 | K43: 0 | L43: 0 | M43: 720
A44: Sarla Beej Bhandar - Mahrendergarh | B44: 9061991 | C44: REGENT (T) SC50 20X500ML BOT IN | D44: 5987678 | E44: 400 | F44: 0 | G44: 0 | H44: 0 | I44: 0 | J44: 0 | K44: 0 | L44: 0 | M44: 400
A45: Sarla Beej Bhandar - Mahrendergarh | B45: 9061991 | C45: REGENT (T) SC50 50X100ML BOT IN | D45: 5975343 | E45: 100 | F45: 0 | G45: 0 | H45: 0 | I45: 0 | J45: 0 | K45: 0 | L45: 0 | M45: 100
A46: Sarla Beej Bhandar - Mahrendergarh | B46: 9061991 | C46: REGENT GR0 3 20X1KG BAG IN | D46: 79667140 | E46: 20 | F46: 0 | G46: 0 | H46: 0 | I46: 0 | J46: 0 | K46: 0 | L46: 0 | M46: 20
A47: Sarla Beej Bhandar - Mahrendergarh | B47: 9061991 | C47: REGENT GR0 3 4X5KG BAG IN | D47: 80018703 | E47: 16 | F47: 0 | G47: 0 | H47: 8 | I47: 0 | J47: 0 | K47: 0 | L47: 0 | M47: 8
A48: Sarla Beej Bhandar - Mahrendergarh | B48: 9061991 | C48: SOLOMON OD300 40X250ML BOT IN | D48: 79706723 | E48: 0 | F48: 0 | G48: 0 | H48: 0 | I48: 0 | J48: 0 | K48: 0 | L48: 0 | M48: 0
A49: Sarla Beej Bhandar - Mahrendergarh | B49: 9061991 | C49: SOLOMON OD300 50X100ML BOT IN | D49: 79641931 | E49: 0 | F49: 0 | G49: 0 | H49: 0 | I49: 0 | J49: 0 | K49: 0 | L49: 0 | M49: 0
A50: Sarla Beej Bhandar - Mahrendergarh | B50: 9061991 | C50: SURPASS 7172 BG2 20X450GR BAG IN | D50: 84456071 | E50: 240 | F50: 400 | G50: 0 | H50: 450 | I50: 0 | J50: 0 | K50: 0 | L50: 20 | M50: 170
A51: Sarla Beej Bhandar - Mahrendergarh | B51: 9061991 | C51: NEWPRODUCT_9061991 | D51: 9061991 | E51: 290 | F51: 0 | G51: 0 | H51: 0 | I51: 0 | J51: 0 | K51: 0 | L51: 0 | M51: 290
A52: Sarla Beej Bhandar - Mahrendergarh | B52: 9061991 | C52: DECIS EC 28 50X100ML BOT IN | D52: 3823311 | E52: 50 | F52: 0 | G52: 0 | H52: 0 | I52: 0 | J52: 0 | K52: 0 | L52: 0 | M52: 50
A53: Sarla Beej Bhandar - Mahrendergarh | B53: 9061991 | C53: MILLET PA 9180 (LOC) 20X1.50KG BAG IN | D53: 86706040 | E53: 0 | F53: 0 | G53: 0 | H53: 0 | I53: 0 | J53: 0 | K53: 0 | L53: 0 | M53: 0
A54: Sarla Beej Bhandar - Mahrendergarh | B54: 9061991 | C54: MUSTARD PA 5210 (LOC) 30X1KG BAG IN | D54: 86195089 | E54: 0 | F54: 0 | G54: 0 | H54: 0 | I54: 0 | J54: 0 | K54: 0 | L54: 0 | M54: 0
A55: Sarla Beej Bhandar - Mahrendergarh | B55: 9061991 | C55: MUSTARD PA 5232 (LOC) 30X1KG BAG IN | D55: 86735628 | E55: 0 | F55: 0 | G55: 0 | H55: 0 | I55: 0 | J55: 0 | K55: 0 | L55: 0 | M55: 0
A56: Sarla Beej Bhandar - Mahrendergarh | B56: 9061991 | C56: BUONOS SC430 40X250ML BOT IN | D56: 86224801 | E56: 40 | F56: 0 | G56: 0 | H56: 0 | I56: 0 | J56: 0 | K56: 0 | L56: 0 | M56: 40
A57: Sarla Beej Bhandar - Mahrendergarh | B57: 9061991 | C57: BUONOS SC430 20X500ML BOT IN | D57: 86254468 | E57: 20 | F57: 0 | G57: 0 | H57: 0 | I57: 0 | J57: 0 | K57: 0 | L57: 0 | M57: 20
A58: GRANDTOTAL | E58: 2296 | F58: 1420 | G58: 0 | H58: 1207 | I58: 0 | J58: 0 | K58: 0 | L58: 20 | M58: 2489

Sheet OPG
A1: ADMIRE (T) WG70 150X30GR BOT IN | B1: =VLOOKUP(A1,'[2]Product Master Sheet'!$B$2:$F$506,5,0) -> 13 | C1: 0
A2: ADMIRE WG70 125X(8X2GR) BAG IN | B2: =VLOOKUP(A2,'[2]Product Master Sheet'!$B$2:$F$506,5,0) -> 16 | C2: 0
A3: ANTRACOL (T) WP70 10X1KG BAG IN | B3: =VLOOKUP(A3,'[2]Product Master Sheet'!$B$2:$F$506,5,0) -> 42 | C3: 20
A4: ANTRACOL (T) WP70 20X500GR BAG IN | B4: =VLOOKUP(A4,'[2]Product Master Sheet'!$B$2:$F$506,5,0) -> 43 | C4: 60
A5: ANTRACOL (T) WP70 40X250GR BAG IN | B5: =VLOOKUP(A5,'[2]Product Master Sheet'!$B$2:$F$506,5,0) -> 44 | C5: 80
A6: ANTRACOL (T) WP70 50X100GR BAG IN | B6: =VLOOKUP(A6,'[2]Product Master Sheet'!$B$2:$F$506,5,0) -> 45 | C6: 0
A7: BELT EXPERT SC480 50X100ML BOT IN | B7: =VLOOKUP(A7,'[2]Product Master Sheet'!$B$2:$F$506,5,0) -> 111 | C7: 0
A8: CONFIDOR (T) SL200 100X50ML BOT IN | B8: =VLOOKUP(A8,'[2]Product Master Sheet'!$B$2:$F$506,5,0) -> 112 | C8: 0
A9: CONFIDOR (T) SL200 20X250ML BOT IN | B9: =VLOOKUP(A9,'[2]Product Master Sheet'!$B$2:$F$506,5,0) -> 114 | C9: 0
A10: CONFIDOR (T) SL200 20X500ML BOT IN | B10: =VLOOKUP(A10,'[2]Product Master Sheet'!$B$2:$F$506,5,0) -> 115 | C10: 0
A11: CONFIDOR (T) SL200 50X100ML BOT IN | B11: =VLOOKUP(A11,'[2]Product Master Sheet'!$B$2:$F$506,5,0) -> 116 | C11: 0
A12: DECIS EC 28 10X1L BOT IN | B12: =VLOOKUP(A12,'[2]Product Master Sheet'!$B$2:$F$506,5,0) -> 124 | C12: 10
A13: DECIS EC 28 40X250ML BOT IN | B13: =VLOOKUP(A13,'[2]Product Master Sheet'!$B$2:$F$506,5,0) -> 126 | C13: 40
A14: FAME (T) SC480 10X(20X10ML) BOT IN | B14: =VLOOKUP(A14,'[2]Product Master Sheet'!$B$2:$F$506,5,0) -> 144 | C14: 0
A15: FOLICUR (T) EC250 40X250ML BOT IN | B15: =VLOOKUP(A15,'[2]Product Master Sheet'!$B$2:$F$506,5,0) -> 164 | C15: 0
A16: FOLICUR (T) EC250 50X100ML BOT IN | B16: =VLOOKUP(A16,'[2]Product Master Sheet'!$B$2:$F$506,5,0) -> 165 | C16: 0
A17: FOOST WP50 24X500G BAG IN | B17: =VLOOKUP(A17,'[2]Product Master Sheet'!$B$2:$F$506,5,0) -> 177 | C17: 0
A18: GAUCHO FS600 100X50ML BOT IN | B18: =VLOOKUP(A18,'[2]Product Master Sheet'!$B$2:$F$506,5,0) -> 179 | C18: 0
A19: GAUCHO FS600 2X5L BOT IN | B19: =VLOOKUP(A19,'[2]Product Master Sheet'!$B$2:$F$506,5,0) -> 180 | C19: 0
A20: INFINITO SC687 5 20X500ML BOT IN | B20: =VLOOKUP(A20,'[2]Product Master Sheet'!$B$2:$F$506,5,0) -> 195 | C20: 0
A21: INFINITO SC687 5 50X100ML BOT IN | B21: =VLOOKUP(A21,'[2]Product Master Sheet'!$B$2:$F$506,5,0) -> 197 | C21: 0
A22: LAUDIS SC630 10X57.5ML BOT IN | B22: =VLOOKUP(A22,'[2]Product Master Sheet'!$B$2:$F$506,5,0) -> 210 | C22: 0
A23: MELODY DUO WP66 8 10X400GR BAG IN | B23: =VLOOKUP(A23,'[2]Product Master Sheet'!$B$2:$F$506,5,0) -> 228 | C23: 0
A24: MILLET HYBRID 9001 20X1.5 BAG IN | B24: =VLOOKUP(A24,'[2]Product Master Sheet'!$B$2:$F$506,5,0) -> 236 | C24: 0
A25: MILLET HYBRID 9444 20X1.5KG BAG IN | B25: =VLOOKUP(A25,'[2]Product Master Sheet'!$B$2:$F$506,5,0) -> 243 | C25: 0
A26: MILLET HYBRID 9444 GOLD 20X1.50KG BAG IN | B26: =VLOOKUP(A26,'[2]Product Master Sheet'!$B$2:$F$506,5,0) -> 248 | C26: 0
A27: MILLET HYBRID 9450 20X1 5KG BAG IN | B27: =VLOOKUP(A27,'[2]Product Master Sheet'!$B$2:$F$506,5,0) -> 251 | C27: 0
A28: MOVENTO ENERGY SC240 40X250ML BOT IN | B28: =VLOOKUP(A28,'[2]Product Master Sheet'!$B$2:$F$506,5,0) -> 273 | C28: 10
A29: MUSTARD 5222 30X1KG BAG IN | B29: =VLOOKUP(A29,'[2]Product Master Sheet'!$B$2:$F$506,5,0) -> 278 | C29: 0
A30: NATIVO WG75 50X100GR BAG IN | B30: =VLOOKUP(A30,'[2]Product Master Sheet'!$B$2:$F$506,5,0) -> 294 | C30: 50
A31: OBERON (T) SC240 40X200ML BOT IN | B31: =VLOOKUP(A31,'[2]Product Master Sheet'!$B$2:$F$506,5,0) -> 299 | C31: 0
A32: OBERON (T) SC240 50X100ML BOT IN | B32: =VLOOKUP(A32,'[2]Product Master Sheet'!$B$2:$F$506,5,0) -> 300 | C32: 0
A33: REGENT (T) SC50 20X250ML BOT IN | B33: =VLOOKUP(A33,'[2]Product Master Sheet'!$B$2:$F$506,5,0) -> 325 | C33: 720
A34: REGENT (T) SC50 20X500ML BOT IN | B34: =VLOOKUP(A34,'[2]Product Master Sheet'!$B$2:$F$506,5,0) -> 326 | C34: 400
A35: REGENT (T) SC50 50X100ML BOT IN | B35: =VLOOKUP(A35,'[2]Product Master Sheet'!$B$2:$F$506,5,0) -> 327 | C35: 100
A36: REGENT GR0 3 20X1KG BAG IN | B36: =VLOOKUP(A36,'[2]Product Master Sheet'!$B$2:$F$506,5,0) -> 335 | C36: 20
A37: REGENT GR0 3 4X5KG BAG IN | B37: =VLOOKUP(A37,'[2]Product Master Sheet'!$B$2:$F$506,5,0) -> 336 | C37: 16
A38: SOLOMON OD300 40X250ML BOT IN | B38: =VLOOKUP(A38,'[2]Product Master Sheet'!$B$2:$F$506,5,0) -> 368 | C38: 0
A39: SOLOMON OD300 50X100ML BOT IN | B39: =VLOOKUP(A39,'[2]Product Master Sheet'!$B$2:$F$506,5,0) -> 370 | C39: 0
A40: SURPASS 7172 BG2 20X450GR BAG IN | B40: =VLOOKUP(A40,'[2]Product Master Sheet'!$B$2:$F$506,5,0) -> 382 | C40: 240
A41: DECIS EC 28 50X100ML BOT IN | B41: =VLOOKUP(A41,'[2]Product Master Sheet'!$B$2:$F$506,5,0) -> 928 | C41: 50
A42: MILLET PA 9180 (LOC) 20X1.50KG BAG IN | B42: =VLOOKUP(A42,'[2]Product Master Sheet'!$B$2:$F$506,5,0) -> 915 | C42: 0
A43: MUSTARD PA 5210 (LOC) 30X1KG BAG IN | B43: =VLOOKUP(A43,'[2]Product Master Sheet'!$B$2:$F$506,5,0) -> 911 | C43: 0
A44: MUSTARD PA 5232 (LOC) 30X1KG BAG IN | B44: =VLOOKUP(A44,'[2]Product Master Sheet'!$B$2:$F$506,5,0) -> 913 | C44: 0
A45: BUONOS SC430 40X250ML BOT IN | B45: =VLOOKUP(A45,'[2]Product Master Sheet'!$B$2:$F$506,5,0) -> 1397 | C45: 40
A46: BUONOS SC430 20X500ML BOT IN | B46: =VLOOKUP(A46,'[2]Product Master Sheet'!$B$2:$F$506,5,0) -> 1396 | C46: 20
A47: CONFIDOR (T) SL200 10X1L BOT IN | B47: =VLOOKUP(A47,'[2]Product Master Sheet'!$B$2:$F$506,5,0) -> 113 | C47: 0
A48: DECIS EC 28 20X500ML BOT IN | B48: =VLOOKUP(A48,'[2]Product Master Sheet'!$B$2:$F$506,5,0) -> 125 | C48: 20
A49: MELODY DUO WP66 8 50X100GR BAG IN | B49: =VLOOKUP(A49,'[2]Product Master Sheet'!$B$2:$F$506,5,0) -> 233 | C49: 0
A50: PLANOFIX SL4 5 50X100ML BOT IN | B50: =VLOOKUP(A50,'[2]Product Master Sheet'!$B$2:$F$506,5,0) -> 307 | C50: 110
A51: SOLOMON OD300 20X500ML BOT IN | B51: =VLOOKUP(A51,'[2]Product Master Sheet'!$B$2:$F$506,5,0) -> 366 | C51: 0

Sheet Reco
B1: Zylem Report -01-Apr-2021 TO 30-Apr-2021 | K1: Dealer Report -01-Apr-2021 TO 30-Apr-2021 | T1: Difference (+/-)
A3: DEALER CODE | B3: Opening Qty | C3: Purchase Qty | D3: Purchase Return Qty | E3: Sales Qty | F3: Sales Return Qty | G3: Transfer Qty | H3: Consignment Qty | I3: Adjustment Qty | J3: CLSG | K3: Opening Qty | L3: Purchase Qty | M3: Purchase Return Qty | N3: Sales Qty | O3: Sales Return Qty | P3: Transfer Qty | Q3: Consignment Qty | R3: Adjustment Qty | S3: CLSG | T3: Opening Stock Qty | U3: Purchase Qty | V3: Purchase Return Qty | W3: Sales Qty | X3: Sales Return Qty | Y3: Transfer Qty | Z3: Consignment Qty | AA3: Adjustments Qty | AB3: CLSG | AC3: Remark
A4: ADMIRE (T) WG70 150X30GR BOT IN | B4: 0 | C4: 0 | D4: 0 | E4: 0 | F4: 0 | G4: 0 | H4: 0 | I4: 0 | J4: 0 | K4: 0 | L4: 0 | M4: 0 | N4: 0 | O4: 0 | P4: 0 | Q4: 0 | R4: 0 | S4: 0 | T4: 0 | U4: 0 | V4: 0 | W4: 0 | X4: 0 | Y4: 0 | Z4: 0 | AA4: 0 | AB4: 0 | AC4: Ok
A5: ADMIRE WG70 125X(8X2GR) BAG IN | B5: 0 | C5: 1000 | D5: 0 | E5: 695 | F5: 0 | G5: 0 | H5: 0 | I5: 0 | J5: 305 | K5: 0 | L5: 1000 | M5: 0 | N5: 695 | O5: 0 | P5: 0 | Q5: 0 | R5: 0 | S5: 305 | T5: 0 | U5: 0 | V5: 0 | W5: 0 | X5: 0 | Y5: 0 | Z5: 0 | AA5: 0 | AB5: 0 | AC5: Ok
A6: ANTRACOL (T) WP70 10X1KG BAG IN | B6: 20 | C6: 0 | D6: 0 | E6: 0 | F6: 0 | G6: 0 | H6: 0 | I6: 0 | J6: 20 | K6: 20 | L6: 0 | M6: 0 | N6: 0 | O6: 0 | P6: 0 | Q6: 0 | R6: 0 | S6: 20 | T6: 0 | U6: 0 | V6: 0 | W6: 0 | X6: 0 | Y6: 0 | Z6: 0 | AA6: 0 | AB6: 0 | AC6: Ok
A7: ANTRACOL (T) WP70 20X500GR BAG IN | B7: 60 | C7: 0 | D7: 0 | E7: 20 | F7: 0 | G7: 0 | H7: 0 | I7: 0 | J7: 40 | K7: 60 | L7: 0 | M7: 0 | N7: 20 | O7: 0 | P7: 0 | Q7: 0 | R7: 0 | S7: 40 | T7: 0 | U7: 0 | V7: 0 | W7: 0 | X7: 0 | Y7: 0 | Z7: 0 | AA7: 0 | AB7: 0 | AC7: Ok
A8: ANTRACOL (T) WP70 40X250GR BAG IN | B8: 80 | C8: 0 | D8: 0 | E8: 0 | F8: 0 | G8: 0 | H8: 0 | I8: 0 | J8: 80 | K8: 80 | L8: 0 | M8: 0 | N8: 0 | O8: 0 | P8: 0 | Q8: 0 | R8: 0 | S8: 80 | T8: 0 | U8: 0 | V8: 0 | W8: 0 | X8: 0 | Y8: 0 | Z8: 0 | AA8: 0 | AB8: 0 | AC8: Ok
A9: ANTRACOL (T) WP70 50X100GR BAG IN | B9: 0 | C9: 0 | D9: 0 | E9: 0 | F9: 0 | G9: 0 | H9: 0 | I9: 0 | J9: 0 | K9: 0 | L9: 0 | M9: 0 | N9: 0 | O9: 0 | P9: 0 | Q9: 0 | R9: 0 | S9: 0 | T9: 0 | U9: 0 | V9: 0 | W9: 0 | X9: 0 | Y9: 0 | Z9: 0 | AA9: 0 | AB9: 0 | AC9: Ok
A10: BELT EXPERT SC480 50X100ML BOT IN | B10: 0 | C10: 0 | D10: 0 | E10: 0 | F10: 0 | G10: 0 | H10: 0 | I10: 0 | J10: 0 | K10: 0 | L10: 0 | M10: 0 | N10: 0 | O10: 0 | P10: 0 | Q10: 0 | R10: 0 | S10: 0 | T10: 0 | U10: 0 | V10: 0 | W10: 0 | X10: 0 | Y10: 0 | Z10: 0 | AA10: 0 | AB10: 0 | AC10: Ok
A11: CONFIDOR (T) SL200 100X50ML BOT IN | B11: 0 | C11: 0 | D11: 0 | E11: 0 | F11: 0 | G11: 0 | H11: 0 | I11: 0 | J11: 0 | K11: 0 | L11: 0 | M11: 0 | N11: 0 | O11: 0 | P11: 0 | Q11: 0 | R11: 0 | S11: 0 | T11: 0 | U11: 0 | V11: 0 | W11: 0 | X11: 0 | Y11: 0 | Z11: 0 | AA11: 0 | AB11: 0 | AC11: Ok
A12: CONFIDOR (T) SL200 20X250ML BOT IN | B12: 0 | C12: 0 | D12: 0 | E12: 0 | F12: 0 | G12: 0 | H12: 0 | I12: 0 | J12: 0 | K12: 0 | L12: 0 | M12: 0 | N12: 0 | O12: 0 | P12: 0 | Q12: 0 | R12: 0 | S12: 0 | T12: 0 | U12: 0 | V12: 0 | W12: 0 | X12: 0 | Y12: 0 | Z12: 0 | AA12: 0 | AB12: 0 | AC12: Ok
A13: CONFIDOR (T) SL200 20X500ML BOT IN | B13: 0 | C13: 0 | D13: 0 | E13: 0 | F13: 0 | G13: 0 | H13: 0 | I13: 0 | J13: 0 | K13: 0 | L13: 0 | M13: 0 | N13: 0 | O13: 0 | P13: 0 | Q13: 0 | R13: 0 | S13: 0 | T13: 0 | U13: 0 | V13: 0 | W13: 0 | X13: 0 | Y13: 0 | Z13: 0 | AA13: 0 | AB13: 0 | AC13: Ok
A14: CONFIDOR (T) SL200 50X100ML BOT IN | B14: 0 | C14: 0 | D14: 0 | E14: 0 | F14: 0 | G14: 0 | H14: 0 | I14: 0 | J14: 0 | K14: 0 | L14: 0 | M14: 0 | N14: 0 | O14: 0 | P14: 0 | Q14: 0 | R14: 0 | S14: 0 | T14: 0 | U14: 0 | V14: 0 | W14: 0 | X14: 0 | Y14: 0 | Z14: 0 | AA14: 0 | AB14: 0 | AC14: Ok
A15: DECIS EC 28 10X1L BOT IN | B15: 10 | C15: 0 | D15: 0 | E15: 10 | F15: 0 | G15: 0 | H15: 0 | I15: 0 | J15: 0 | K15: 10 | L15: 0 | M15: 0 | N15: 10 | O15: 0 | P15: 0 | Q15: 0 | R15: 0 | S15: 0 | T15: 0 | U15: 0 | V15: 0 | W15: 0 | X15: 0 | Y15: 0 | Z15: 0 | AA15: 0 | AB15: 0 | AC15: Ok
A16: DECIS EC 28 20X500ML BOT IN | B16: 20 | C16: 0 | D16: 0 | E16: 0 | F16: 0 | G16: 0 | H16: 0 | I16: 0 | J16: 20 | K16: 20 | L16: 0 | M16: 0 | N16: 0 | O16: 0 | P16: 0 | Q16: 0 | R16: 0 | S16: 20 | T16: 0 | U16: 0 | V16: 0 | W16: 0 | X16: 0 | Y16: 0 | Z16: 0 | AA16: 0 | AB16: 0 | AC16: Ok
A17: DECIS EC 28 40X250ML BOT IN | B17: 40 | C17: 0 | D17: 0 | E17: 0 | F17: 0 | G17: 0 | H17: 0 | I17: 0 | J17: 40 | K17: 40 | L17: 0 | M17: 0 | N17: 0 | O17: 0 | P17: 0 | Q17: 0 | R17: 0 | S17: 40 | T17: 0 | U17: 0 | V17: 0 | W17: 0 | X17: 0 | Y17: 0 | Z17: 0 | AA17: 0 | AB17: 0 | AC17: Ok
A18: FAME (T) SC480 10X(20X10ML) BOT IN | B18: 0 | C18: 0 | D18: 0 | E18: 0 | F18: 0 | G18: 0 | H18: 0 | I18: 0 | J18: 0 | K18: 0 | L18: 0 | M18: 0 | N18: 0 | O18: 0 | P18: 0 | Q18: 0 | R18: 0 | S18: 0 | T18: 0 | U18: 0 | V18: 0 | W18: 0 | X18: 0 | Y18: 0 | Z18: 0 | AA18: 0 | AB18: 0 | AC18: Ok
A19: FOLICUR (T) EC250 40X250ML BOT IN | B19: 0 | C19: 0 | D19: 0 | E19: 0 | F19: 0 | G19: 0 | H19: 0 | I19: 0 | J19: 0 | K19: 0 | L19: 0 | M19: 0 | N19: 0 | O19: 0 | P19: 0 | Q19: 0 | R19: 0 | S19: 0 | T19: 0 | U19: 0 | V19: 0 | W19: 0 | X19: 0 | Y19: 0 | Z19: 0 | AA19: 0 | AB19: 0 | AC19: Ok
A20: FOLICUR (T) EC250 50X100ML BOT IN | B20: 0 | C20: 0 | D20: 0 | E20: 0 | F20: 0 | G20: 0 | H20: 0 | I20: 0 | J20: 0 | K20: 0 | L20: 0 | M20: 0 | N20: 0 | O20: 0 | P20: 0 | Q20: 0 | R20: 0 | S20: 0 | T20: 0 | U20: 0 | V20: 0 | W20: 0 | X20: 0 | Y20: 0 | Z20: 0 | AA20: 0 | AB20: 0 | AC20: Ok
A21: FOOST WP50 24X500G BAG IN | B21: 0 | C21: 0 | D21: 0 | E21: 0 | F21: 0 | G21: 0 | H21: 0 | I21: 0 | J21: 0 | K21: 0 | L21: 0 | M21: 0 | N21: 0 | O21: 0 | P21: 0 | Q21: 0 | R21: 0 | S21: 0 | T21: 0 | U21: 0 | V21: 0 | W21: 0 | X21: 0 | Y21: 0 | Z21: 0 | AA21: 0 | AB21: 0 | AC21: Ok
A22: GAUCHO FS600 100X50ML BOT IN | B22: 0 | C22: 0 | D22: 0 | E22: 0 | F22: 0 | G22: 0 | H22: 0 | I22: 0 | J22: 0 | K22: 0 | L22: 0 | M22: 0 | N22: 0 | O22: 0 | P22: 0 | Q22: 0 | R22: 0 | S22: 0 | T22: 0 | U22: 0 | V22: 0 | W22: 0 | X22: 0 | Y22: 0 | Z22: 0 | AA22: 0 | AB22: 0 | AC22: Ok
A23: GAUCHO FS600 2X5L BOT IN | B23: 0 | C23: 0 | D23: 0 | E23: 0 | F23: 0 | G23: 0 | H23: 0 | I23: 0 | J23: 0 | K23: 0 | L23: 0 | M23: 0 | N23: 0 | O23: 0 | P23: 0 | Q23: 0 | R23: 0 | S23: 0 | T23: 0 | U23: 0 | V23: 0 | W23: 0 | X23: 0 | Y23: 0 | Z23: 0 | AA23: 0 | AB23: 0 | AC23: Ok
A24: INFINITO SC687 5 20X500ML BOT IN | B24: 0 | C24: 20 | D24: 0 | E24: 0 | F24: 0 | G24: 0 | H24: 0 | I24: 0 | J24: 20 | K24: 0 | L24: 20 | M24: 0 | N24: 0 | O24: 0 | P24: 0 | Q24: 0 | R24: 0 | S24: 20 | T24: 0 | U24: 0 | V24: 0 | W24: 0 | X24: 0 | Y24: 0 | Z24: 0 | AA24: 0 | AB24: 0 | AC24: Ok
A25: INFINITO SC687 5 50X100ML BOT IN | B25: 0 | C25: 0 | D25: 0 | E25: 0 | F25: 0 | G25: 0 | H25: 0 | I25: 0 | J25: 0 | K25: 0 | L25: 0 | M25: 0 | N25: 0 | O25: 0 | P25: 0 | Q25: 0 | R25: 0 | S25: 0 | T25: 0 | U25: 0 | V25: 0 | W25: 0 | X25: 0 | Y25: 0 | Z25: 0 | AA25: 0 | AB25: 0 | AC25: Ok
A26: LAUDIS SC630 10X57.5ML BOT IN | B26: 0 | C26: 0 | D26: 0 | E26: 0 | F26: 0 | G26: 0 | H26: 0 | I26: 0 | J26: 0 | K26: 0 | L26: 0 | M26: 0 | N26: 0 | O26: 0 | P26: 0 | Q26: 0 | R26: 0 | S26: 0 | T26: 0 | U26: 0 | V26: 0 | W26: 0 | X26: 0 | Y26: 0 | Z26: 0 | AA26: 0 | AB26: 0 | AC26: Ok
A27: MELODY DUO WP66 8 10X400GR BAG IN | B27: 0 | C27: 0 | D27: 0 | E27: 0 | F27: 0 | G27: 0 | H27: 0 | I27: 0 | J27: 0 | K27: 0 | L27: 0 | M27: 0 | N27: 0 | O27: 0 | P27: 0 | Q27: 0 | R27: 0 | S27: 0 | T27: 0 | U27: 0 | V27: 0 | W27: 0 | X27: 0 | Y27: 0 | Z27: 0 | AA27: 0 | AB27: 0 | AC27: Ok
A28: MILLET HYBRID 9001 20X1.5 BAG IN | B28: 0 | C28: 0 | D28: 0 | E28: 0 | F28: 0 | G28: 0 | H28: 0 | I28: 0 | J28: 0 | K28: 0 | L28: 0 | M28: 0 | N28: 0 | O28: 0 | P28: 0 | Q28: 0 | R28: 0 | S28: 0 | T28: 0 | U28: 0 | V28: 0 | W28: 0 | X28: 0 | Y28: 0 | Z28: 0 | AA28: 0 | AB28: 0 | AC28: Ok
A29: MILLET HYBRID 9444 20X1.5KG BAG IN | B29: 0 | C29: 0 | D29: 0 | E29: 0 | F29: 0 | G29: 0 | H29: 0 | I29: 0 | J29: 0 | K29: 0 | L29: 0 | M29: 0 | N29: 0 | O29: 0 | P29: 0 | Q29: 0 | R29: 0 | S29: 0 | T29: 0 | U29: 0 | V29: 0 | W29: 0 | X29: 0 | Y29: 0 | Z29: 0 | AA29: 0 | AB29: 0 | AC29: Ok
A30: MILLET HYBRID 9444 GOLD 20X1.50KG BAG IN | B30: 0 | C30: 0 | D30: 0 | E30: 0 | F30: 0 | G30: 0 | H30: 0 | I30: 0 | J30: 0 | K30: 0 | L30: 0 | M30: 0 | N30: 0 | O30: 0 | P30: 0 | Q30: 0 | R30: 0 | S30: 0 | T30: 0 | U30: 0 | V30: 0 | W30: 0 | X30: 0 | Y30: 0 | Z30: 0 | AA30: 0 | AB30: 0 | AC30: Ok
A31: MILLET HYBRID 9450 20X1 5KG BAG IN | B31: 0 | C31: 0 | D31: 0 | E31: 0 | F31: 0 | G31: 0 | H31: 0 | I31: 0 | J31: 0 | K31: 0 | L31: 0 | M31: 0 | N31: 0 | O31: 0 | P31: 0 | Q31: 0 | R31: 0 | S31: 0 | T31: 0 | U31: 0 | V31: 0 | W31: 0 | X31: 0 | Y31: 0 | Z31: 0 | AA31: 0 | AB31: 0 | AC31: Ok
A32: MOVENTO ENERGY SC240 40X250ML BOT IN | B32: 10 | C32: 0 | D32: 0 | E32: 0 | F32: 0 | G32: 0 | H32: 0 | I32: 0 | J32: 10 | K32: 10 | L32: 0 | M32: 0 | N32: 0 | O32: 0 | P32: 0 | Q32: 0 | R32: 0 | S32: 10 | T32: 0 | U32: 0 | V32: 0 | W32: 0 | X32: 0 | Y32: 0 | Z32: 0 | AA32: 0 | AB32: 0 | AC32: Ok
A33: MUSTARD 5222 30X1KG BAG IN | B33: 0 | C33: 0 | D33: 0 | E33: 0 | F33: 0 | G33: 0 | H33: 0 | I33: 0 | J33: 0 | K33: 0 | L33: 0 | M33: 0 | N33: 0 | O33: 0 | P33: 0 | Q33: 0 | R33: 0 | S33: 0 | T33: 0 | U33: 0 | V33: 0 | W33: 0 | X33: 0 | Y33: 0 | Z33: 0 | AA33: 0 | AB33: 0 | AC33: Ok
A34: NATIVO WG75 50X100GR BAG IN | B34: 50 | C34: 0 | D34: 0 | E34: 24 | F34: 0 | G34: 0 | H34: 0 | I34: 0 | J34: 26 | K34: 50 | L34: 0 | M34: 0 | N34: 24 | O34: 0 | P34: 0 | Q34: 0 | R34: 0 | S34: 26 | T34: 0 | U34: 0 | V34: 0 | W34: 0 | X34: 0 | Y34: 0 | Z34: 0 | AA34: 0 | AB34: 0 | AC34: Ok
A35: OBERON (T) SC240 40X200ML BOT IN | B35: 0 | C35: 0 | D35: 0 | E35: 0 | F35: 0 | G35: 0 | H35: 0 | I35: 0 | J35: 0 | K35: 0 | L35: 0 | M35: 0 | N35: 0 | O35: 0 | P35: 0 | Q35: 0 | R35: 0 | S35: 0 | T35: 0 | U35: 0 | V35: 0 | W35: 0 | X35: 0 | Y35: 0 | Z35: 0 | AA35: 0 | AB35: 0 | AC35: Ok
A36: OBERON (T) SC240 50X100ML BOT IN | B36: 0 | C36: 0 | D36: 0 | E36: 0 | F36: 0 | G36: 0 | H36: 0 | I36: 0 | J36: 0 | K36: 0 | L36: 0 | M36: 0 | N36: 0 | O36: 0 | P36: 0 | Q36: 0 | R36: 0 | S36: 0 | T36: 0 | U36: 0 | V36: 0 | W36: 0 | X36: 0 | Y36: 0 | Z36: 0 | AA36: 0 | AB36: 0 | AC36: Ok
A37: PLANOFIX SL4 5 50X100ML BOT IN | B37: 110 | C37: 0 | D37: 0 | E37: 0 | F37: 0 | G37: 0 | H37: 0 | I37: 0 | J37: 110 | K37: 110 | L37: 0 | M37: 0 | N37: 0 | O37: 0 | P37: 0 | Q37: 0 | R37: 0 | S37: 110 | T37: 0 | U37: 0 | V37: 0 | W37: 0 | X37: 0 | Y37: 0 | Z37: 0 | AA37: 0 | AB37: 0 | AC37: Ok
A38: REGENT (T) SC50 20X250ML BOT IN | B38: 720 | C38: 0 | D38: 0 | E38: 0 | F38: 0 | G38: 0 | H38: 0 | I38: 0 | J38: 720 | K38: 720 | L38: 0 | M38: 0 | N38: 0 | O38: 0 | P38: 0 | Q38: 0 | R38: 0 | S38: 720 | T38: 0 | U38: 0 | V38: 0 | W38: 0 | X38: 0 | Y38: 0 | Z38: 0 | AA38: 0 | AB38: 0 | AC38: Ok
A39: REGENT (T) SC50 20X500ML BOT IN | B39: 400 | C39: 0 | D39: 0 | E39: 0 | F39: 0 | G39: 0 | H39: 0 | I39: 0 | J39: 400 | K39: 400 | L39: 0 | M39: 0 | N39: 0 | O39: 0 | P39: 0 | Q39: 0 | R39: 0 | S39: 400 | T39: 0 | U39: 0 | V39: 0 | W39: 0 | X39: 0 | Y39: 0 | Z39: 0 | AA39: 0 | AB39: 0 | AC39: Ok
A40: REGENT (T) SC50 50X100ML BOT IN | B40: 100 | C40: 0 | D40: 0 | E40: 0 | F40: 0 | G40: 0 | H40: 0 | I40: 0 | J40: 100 | K40: 100 | L40: 0 | M40: 0 | N40: 0 | O40: 0 | P40: 0 | Q40: 0 | R40: 0 | S40: 100 | T40: 0 | U40: 0 | V40: 0 | W40: 0 | X40: 0 | Y40: 0 | Z40: 0 | AA40: 0 | AB40: 0 | AC40: Ok
A41: REGENT GR0 3 20X1KG BAG IN | B41: 20 | C41: 0 | D41: 0 | E41: 0 | F41: 0 | G41: 0 | H41: 0 | I41: 0 | J41: 20 | K41: 20 | L41: 0 | M41: 0 | N41: 0 | O41: 0 | P41: 0 | Q41: 0 | R41: 0 | S41: 20 | T41: 0 | U41: 0 | V41: 0 | W41: 0 | X41: 0 | Y41: 0 | Z41: 0 | AA41: 0 | AB41: 0 | AC41: Ok
A42: REGENT GR0 3 4X5KG BAG IN | B42: 16 | C42: 0 | D42: 0 | E42: 8 | F42: 0 | G42: 0 | H42: 0 | I42: 0 | J42: 8 | K42: 16 | L42: 0 | M42: 0 | N42: 8 | O42: 0 | P42: 0 | Q42: 0 | R42: 0 | S42: 8 | T42: 0 | U42: 0 | V42: 0 | W42: 0 | X42: 0 | Y42: 0 | Z42: 0 | AA42: 0 | AB42: 0 | AC42: Ok
A43: SOLOMON OD300 40X250ML BOT IN | B43: 0 | C43: 0 | D43: 0 | E43: 0 | F43: 0 | G43: 0 | H43: 0 | I43: 0 | J43: 0 | K43: 0 | L43: 0 | M43: 0 | N43: 0 | O43: 0 | P43: 0 | Q43: 0 | R43: 0 | S43: 0 | T43: 0 | U43: 0 | V43: 0 | W43: 0 | X43: 0 | Y43: 0 | Z43: 0 | AA43: 0 | AB43: 0 | AC43: Ok
A44: SOLOMON OD300 50X100ML BOT IN | B44: 0 | C44: 0 | D44: 0 | E44: 0 | F44: 0 | G44: 0 | H44: 0 | I44: 0 | J44: 0 | K44: 0 | L44: 0 | M44: 0 | N44: 0 | O44: 0 | P44: 0 | Q44: 0 | R44: 0 | S44: 0 | T44: 0 | U44: 0 | V44: 0 | W44: 0 | X44: 0 | Y44: 0 | Z44: 0 | AA44: 0 | AB44: 0 | AC44: Ok
A45: SURPASS 7172 BG2 20X450GR BAG IN | B45: 240 | C45: 400 | D45: 0 | E45: 450 | F45: 0 | G45: 0 | H45: 0 | I45: 20 | J45: 170 | K45: 240 | L45: 400 | M45: 0 | N45: 470 | O45: 0 | P45: 0 | Q45: 0 | R45: 0 | S45: 170 | T45: 0 | U45: 0 | V45: 0 | W45: -20 | X45: 0 | Y45: 0 | Z45: 0 | AA45: 20 | AB45: 0 | AC45: Ok
A46: DECIS EC 28 50X100ML BOT IN | B46: 50 | C46: 0 | D46: 0 | E46: 0 | F46: 0 | G46: 0 | H46: 0 | I46: 0 | J46: 50 | K46: 50 | L46: 0 | M46: 0 | N46: 0 | O46: 0 | P46: 0 | Q46: 0 | R46: 0 | S46: 50 | T46: 0 | U46: 0 | V46: 0 | W46: 0 | X46: 0 | Y46: 0 | Z46: 0 | AA46: 0 | AB46: 0 | AC46: Ok
A47: MILLET PA 9180 (LOC) 20X1.50KG BAG IN | B47: 0 | C47: 0 | D47: 0 | E47: 0 | F47: 0 | G47: 0 | H47: 0 | I47: 0 | J47: 0 | K47: 0 | L47: 0 | M47: 0 | N47: 0 | O47: 0 | P47: 0 | Q47: 0 | R47: 0 | S47: 0 | T47: 0 | U47: 0 | V47: 0 | W47: 0 | X47: 0 | Y47: 0 | Z47: 0 | AA47: 0 | AB47: 0 | AC47: Ok
A48: MUSTARD PA 5210 (LOC) 30X1KG BAG IN | B48: 0 | C48: 0 | D48: 0 | E48: 0 | F48: 0 | G48: 0 | H48: 0 | I48: 0 | J48: 0 | K48: 0 | L48: 0 | M48: 0 | N48: 0 | O48: 0 | P48: 0 | Q48: 0 | R48: 0 | S48: 0 | T48: 0 | U48: 0 | V48: 0 | W48: 0 | X48: 0 | Y48: 0 | Z48: 0 | AA48: 0 | AB48: 0 | AC48: Ok
A49: MUSTARD PA 5232 (LOC) 30X1KG BAG IN | B49: 0 | C49: 0 | D49: 0 | E49: 0 | F49: 0 | G49: 0 | H49: 0 | I49: 0 | J49: 0 | K49: 0 | L49: 0 | M49: 0 | N49: 0 | O49: 0 | P49: 0 | Q49: 0 | R49: 0 | S49: 0 | T49: 0 | U49: 0 | V49: 0 | W49: 0 | X49: 0 | Y49: 0 | Z49: 0 | AA49: 0 | AB49: 0 | AC49: Ok
A50: BUONOS SC430 40X250ML BOT IN | B50: 40 | C50: 0 | D50: 0 | E50: 0 | F50: 0 | G50: 0 | H50: 0 | I50: 0 | J50: 40 | K50: 40 | L50: 0 | M50: 0 | N50: 0 | O50: 0 | P50: 0 | Q50: 0 | R50: 0 | S50: 40 | T50: 0 | U50: 0 | V50: 0 | W50: 0 | X50: 0 | Y50: 0 | Z50: 0 | AA50: 0 | AB50: 0 | AC50: Ok
A51: BUONOS SC430 20X500ML BOT IN | B51: 20 | C51: 0 | D51: 0 | E51: 0 | F51: 0 | G51: 0 | H51: 0 | I51: 0 | J51: 20 | K51: 20 | L51: 0 | M51: 0 | N51: 0 | O51: 0 | P51: 0 | Q51: 0 | R51: 0 | S51: 20 | T51: 0 | U51: 0 | V51: 0 | W51: 0 | X51: 0 | Y51: 0 | Z51: 0 | AA51: 0 | AB51: 0 | AC51: Ok
A52: CONFIDOR (T) SL200 10X1L BOT IN | B52: 0 | C52: 0 | D52: 0 | E52: 0 | F52: 0 | G52: 0 | H52: 0 | I52: 0 | J52: 0 | K52: 0 | L52: 0 | M52: 0 | N52: 0 | O52: 0 | P52: 0 | Q52: 0 | R52: 0 | S52: 0 | T52: 0 | U52: 0 | V52: 0 | W52: 0 | X52: 0 | Y52: 0 | Z52: 0 | AA52: 0 | AB52: 0 | AC52: Ok
A53: MELODY DUO WP66 8 50X100GR BAG IN | B53: 0 | C53: 0 | D53: 0 | E53: 0 | F53: 0 | G53: 0 | H53: 0 | I53: 0 | J53: 0 | K53: 0 | L53: 0 | M53: 0 | N53: 0 | O53: 0 | P53: 0 | Q53: 0 | R53: 0 | S53: 0 | T53: 0 | U53: 0 | V53: 0 | W53: 0 | X53: 0 | Y53: 0 | Z53: 0 | AA53: 0 | AB53: 0 | AC53: Ok
A54: SOLOMON OD300 20X500ML BOT IN | B54: 0 | C54: 0 | D54: 0 | E54: 0 | F54: 0 | G54: 0 | H54: 0 | I54: 0 | J54: 0 | K54: 0 | L54: 0 | M54: 0 | N54: 0 | O54: 0 | P54: 0 | Q54: 0 | R54: 0 | S54: 0 | T54: 0 | U54: 0 | V54: 0 | W54: 0 | X54: 0 | Y54: 0 | Z54: 0 | AA54: 0 | AB54: 0 | AC54: Ok
A55: Total | B55: 2296 | C55: 1420 | D55: 0 | E55: 1207 | F55: 0 | G55: 0 | H55: 0 | I55: 20 | J55: 2489 | K55: 2006 | L55: 1420 | M55: 0 | N55: 1227 | O55: 0 | P55: 0 | Q55: 0 | R55: 0 | S55: 2199 | T55: =SUM(T4:T54) -> 0 | U55: 0 | V55: 0 | W55: -20 | X55: 0 | Y55: 0 | Z55: 0 | AA55: 20 | AB55: =SUM(AB4:AB54) -> 0
